[Event "Late-Titled-Tuesday-Blitz-April-30-2024"]
[Site "Chess.com"]
[Date "2024.04.30"]
[Round "5"]
[White "Nemsko"]
[Black "Mugiwara2b"]
[Result "1-0"]
[WhiteElo "2460"]
[BlackElo "2598"]
[TimeControl "180+1"]
[EndTime "14:57:38 PDT"]
[Termination "Nemsko won by resignation"]

1. e4 {[%clk 0:03:00.9]} 1... c5 {[%clk 0:02:44.3]} 2. Nf3 {[%clk 0:03:00.8]}
2... d6 {[%clk 0:02:42.1]} 3. d4 {[%clk 0:03:01.3]} 3... cxd4 {[%clk 0:02:42.9]}
4. Nxd4 {[%clk 0:03:02]} 4... Nf6 {[%clk 0:02:43.4]} 5. Nc3 {[%clk 0:03:02.2]}
5... a6 {[%clk 0:02:43.9]} 6. Be3 {[%clk 0:03:02.5]} 6... e5 {[%clk 0:02:41.8]}
7. Nb3 {[%clk 0:03:02.7]} 7... Nc6 {[%clk 0:02:41.5]} 8. h3 {[%clk 0:02:57.2]}
8... Be6 {[%clk 0:02:39.4]} 9. Qf3 {[%clk 0:02:56.3]} 9... Be7 {[%clk
0:02:37.5]} 10. O-O-O {[%clk 0:02:56.7]} 10... b5 {[%clk 0:02:32.9]} 11. g4
{[%clk 0:02:55.6]} 11... b4 {[%clk 0:02:22.9]} 12. Nd5 {[%clk 0:02:55.3]} 12...
Bxd5 {[%clk 0:02:16.5]} 13. exd5 {[%clk 0:02:56.2]} 13... Na5 {[%clk 0:02:16.8]}
14. Kb1 {[%clk 0:02:48.1]} 14... O-O {[%clk 0:02:07.7]} 15. g5 {[%clk
0:02:37.5]} 15... Nd7 {[%clk 0:02:03.8]} 16. Bd3 {[%clk 0:02:35.8]} 16... g6
{[%clk 0:01:56.1]} 17. h4 {[%clk 0:02:35.7]} 17... f5 {[%clk 0:01:53.9]} 18.
gxf6 {[%clk 0:02:36.6]} 18... Nxf6 {[%clk 0:01:48.1]} 19. Qg2 {[%clk 0:02:34.4]}
19... Nxb3 {[%clk 0:01:43.5]} 20. axb3 {[%clk 0:02:34.1]} 20... Nh5 {[%clk
0:01:22.4]} 21. Bxg6 {[%clk 0:01:59.2]} 21... hxg6 {[%clk 0:01:23.3]} 22. Qxg6+
{[%clk 0:01:59.4]} 22... Ng7 {[%clk 0:01:22.5]} 23. Rdg1 {[%clk 0:01:55.8]}
23... Bf6 {[%clk 0:00:54.2]} 24. h5 {[%clk 0:01:42.5]} 24... Qe8 {[%clk
0:00:53.9]} 25. Qg4 {[%clk 0:01:40.6]} 25... Kh8 {[%clk 0:00:36.8]} 26. h6
{[%clk 0:01:36.9]} 26... Nh5 {[%clk 0:00:30.4]} 27. Qxh5 {[%clk 0:01:13.3]}
27... Qxh5 {[%clk 0:00:28.6]} 28. Rxh5 {[%clk 0:01:14.2]} 28... Rg8 {[%clk
0:00:24.6]} 29. Rhh1 {[%clk 0:01:10.1]} 29... Kh7 {[%clk 0:00:22.9]} 30. c3
{[%clk 0:01:05.9]} 30... bxc3 {[%clk 0:00:22.5]} 31. bxc3 {[%clk 0:01:06.8]}
31... Rgc8 {[%clk 0:00:21.9]} 32. Kc2 {[%clk 0:01:02.2]} 32... a5 {[%clk
0:00:22.3]} 33. Rg4 {[%clk 0:01:00]} 33... e4 {[%clk 0:00:17.7]} 34. Rxe4 {[%clk
0:00:40.9]} 34... Rxc3+ {[%clk 0:00:17.1]} 35. Kd2 {[%clk 0:00:41.4]} 35... Rac8
{[%clk 0:00:17.5]} 36. Ke2 {[%clk 0:00:39]} 36... Rxb3 {[%clk 0:00:17.2]} 37.
Re6 {[%clk 0:00:38.6]} 37... Be5 {[%clk 0:00:11.4]} 38. Re7+ {[%clk 0:00:37.2]}
38... Kh8 {[%clk 0:00:12.1]} 39. Ra7 {[%clk 0:00:26.5]} 39... Rb2+ {[%clk
0:00:12.1]} 40. Kf3 {[%clk 0:00:24.9]} 40... Rf8+ {[%clk 0:00:12.7]} 41. Kg2
{[%clk 0:00:21.6]} 41... Rg8+ {[%clk 0:00:12.7]} 42. Kf3 {[%clk 0:00:22]} 42...
Rf8+ {[%clk 0:00:11.9]} 43. Kg4 {[%clk 0:00:21.7]} 43... Rb4+ {[%clk 0:00:08.9]}
44. Kh5 {[%clk 0:00:05.8]} 44... Bd4 {[%clk 0:00:08.2]} 45. Rg1 {[%clk
0:00:03.3]} 45... Bxe3 {[%clk 0:00:05.1]} 46. fxe3 {[%clk 0:00:04.2]} 46... Rg8
{[%clk 0:00:03.7]} 47. Rxg8+ {[%clk 0:00:04.2]} 47... Kxg8 {[%clk 0:00:04.6]}
48. Ra8+ {[%clk 0:00:02.9]} 48... Kf7 {[%clk 0:00:04.8]} 49. Ra7+ {[%clk
0:00:02.7]} 49... Kf6 {[%clk 0:00:04.9]} 50. h7 {[%clk 0:00:02.8]} 50... Rb1
{[%clk 0:00:05.7]} 51. h8=Q+ {[%clk 0:00:03]} 51... Kf5 {[%clk 0:00:06.3]} 52.
Qf8+ {[%clk 0:00:03.3]} 52... Ke4 {[%clk 0:00:06.8]} 53. Re7+ {[%clk 0:00:03.6]}
53... Kxd5 {[%clk 0:00:06.2]} 54. Qf5+ {[%clk 0:00:04.2]} 54... Kc6 {[%clk
0:00:06.5]} 55. Qxb1 {[%clk 0:00:04.4]} 1-0

[Event "Late-Titled-Tuesday-Blitz-April-30-2024"]
[Site "Chess.com"]
[Date "2024.04.30"]
[Round "5"]
[White "DuleMudule"]
[Black "rdarruda"]
[Result "1-0"]
[WhiteElo "2783"]
[BlackElo "2541"]
[TimeControl "180+1"]
[EndTime "14:57:39 PDT"]
[Termination "DuleMudule won by resignation"]

1. d4 {[%clk 0:02:57.2]} 1... Nf6 {[%clk 0:02:56.2]} 2. Bg5 {[%clk 0:02:56.9]}
2... e6 {[%clk 0:02:55.5]} 3. e3 {[%clk 0:02:56.7]} 3... d5 {[%clk 0:02:55.3]}
4. Nd2 {[%clk 0:02:55.5]} 4... Be7 {[%clk 0:02:55.7]} 5. Bd3 {[%clk 0:02:54.3]}
5... c5 {[%clk 0:02:52.7]} 6. c3 {[%clk 0:02:54.1]} 6... Nbd7 {[%clk 0:02:51]}
7. f4 {[%clk 0:02:54]} 7... h6 {[%clk 0:02:49.1]} 8. Bh4 {[%clk 0:02:51.6]} 8...
O-O {[%clk 0:02:48.1]} 9. Qe2 {[%clk 0:02:49.3]} 9... b6 {[%clk 0:02:45.9]} 10.
Nh3 {[%clk 0:02:49.6]} 10... Bb7 {[%clk 0:02:43.7]} 11. Nf2 {[%clk 0:02:49.8]}
11... Re8 {[%clk 0:02:20.3]} 12. O-O {[%clk 0:02:48.3]} 12... Qc7 {[%clk
0:02:20.2]} 13. Kh1 {[%clk 0:02:37.2]} 13... Qc6 {[%clk 0:02:16.6]} 14. Bxf6
{[%clk 0:02:32.9]} 14... Nxf6 {[%clk 0:02:15.9]} 15. Bb5 {[%clk 0:02:31.8]}
15... Qc7 {[%clk 0:02:13.9]} 16. Bxe8 {[%clk 0:02:31.6]} 16... Rxe8 {[%clk
0:02:14.5]} 17. a4 {[%clk 0:02:28.7]} 17... a6 {[%clk 0:02:12.3]} 18. Nf3 {[%clk
0:02:25]} 18... Ne4 {[%clk 0:02:05.5]} 19. Nxe4 {[%clk 0:02:24.4]} 19... dxe4
{[%clk 0:02:06.4]} 20. Ne5 {[%clk 0:02:24.4]} 20... f6 {[%clk 0:02:06.3]} 21.
Ng6 {[%clk 0:02:22.9]} 21... Bd6 {[%clk 0:02:06.3]} 22. f5 {[%clk 0:02:17.8]}
22... exf5 {[%clk 0:02:04.4]} 23. Rxf5 {[%clk 0:02:17.4]} 23... Qf7 {[%clk
0:02:04.3]} 24. Nh4 {[%clk 0:02:12.6]} 24... g5 {[%clk 0:01:57]} 25. Qg4 {[%clk
0:01:58.8]} 25... Kh7 {[%clk 0:01:45.1]} 26. Raf1 {[%clk 0:01:55.8]} 26... Be7
{[%clk 0:01:43]} 27. d5 {[%clk 0:01:37.9]} 27... gxh4 {[%clk 0:01:41.6]} 28.
Qxe4 {[%clk 0:01:36]} 28... Qg6 {[%clk 0:01:28.9]} 29. Qxh4 {[%clk 0:01:24]}
29... Bd8 {[%clk 0:01:28.8]} 30. e4 {[%clk 0:01:21.3]} 30... Bc8 {[%clk
0:01:21.3]} 31. R5f4 {[%clk 0:01:16.8]} 31... Re5 {[%clk 0:01:17.4]} 32. b4
{[%clk 0:01:02.6]} 32... Be7 {[%clk 0:01:14.6]} 33. h3 {[%clk 0:01:00.4]} 33...
Rg5 {[%clk 0:01:08.3]} 34. R1f2 {[%clk 0:00:50.1]} 34... Bd7 {[%clk 0:01:08]}
35. a5 {[%clk 0:00:48.2]} 35... bxa5 {[%clk 0:01:05.7]} 36. bxc5 {[%clk
0:00:48.3]} 36... Bxc5 {[%clk 0:01:03.7]} 37. Rxf6 {[%clk 0:00:47]} 37... Bxf2
{[%clk 0:01:03.6]} 38. Qxf2 {[%clk 0:00:46.2]} 38... Qxe4 {[%clk 0:01:00.6]} 39.
c4 {[%clk 0:00:33.7]} 39... Rf5 {[%clk 0:00:55.1]} 40. Rxf5 {[%clk 0:00:32.7]}
40... Qxf5 {[%clk 0:00:51.6]} 41. Qd4 {[%clk 0:00:32.3]} 41... a4 {[%clk
0:00:50.3]} 42. c5 {[%clk 0:00:31.9]} 42... a3 {[%clk 0:00:50.5]} 43. c6 {[%clk
0:00:32.3]} 43... Bc8 {[%clk 0:00:41.3]} 44. d6 {[%clk 0:00:32.4]} 44... a2
{[%clk 0:00:36.4]} 45. d7 {[%clk 0:00:31.6]} 45... Qb1+ {[%clk 0:00:25.4]} 46.
Kh2 {[%clk 0:00:30.8]} 46... Qb8+ {[%clk 0:00:23.1]} 47. g3 {[%clk 0:00:20.5]}
47... Bxd7 {[%clk 0:00:13.7]} 48. Qxd7+ {[%clk 0:00:17.4]} 48... Kg6 {[%clk
0:00:12.3]} 49. Qd3+ {[%clk 0:00:16]} 49... Kg7 {[%clk 0:00:11.8]} 50. Qc3+
{[%clk 0:00:15.5]} 50... Kh7 {[%clk 0:00:11.3]} 51. c7 {[%clk 0:00:14.8]} 51...
a1=Q {[%clk 0:00:08.1]} 52. Qd3+ {[%clk 0:00:12.3]} 52... Kg7 {[%clk 0:00:07.4]}
53. cxb8=Q {[%clk 0:00:12.6]} 1-0

[Event "Late-Titled-Tuesday-Blitz-April-30-2024"]
[Site "Chess.com"]
[Date "2024.04.30"]
[Round "5"]
[White "NoSpaghettiForYou"]
[Black "rhwr"]
[Result "1-0"]
[WhiteElo "2500"]
[BlackElo "2279"]
[TimeControl "180+1"]
[EndTime "14:57:39 PDT"]
[Termination "NoSpaghettiForYou won by resignation"]

1. Nf3 {[%clk 0:03:00.9]} 1... Nf6 {[%clk 0:02:58.3]} 2. e3 {[%clk 0:03:00.5]}
2... d5 {[%clk 0:02:57.4]} 3. c4 {[%clk 0:03:00.4]} 3... g6 {[%clk 0:02:46.7]}
4. b3 {[%clk 0:02:58.6]} 4... Bg7 {[%clk 0:02:46.6]} 5. Bb2 {[%clk 0:02:58.7]}
5... O-O {[%clk 0:02:46]} 6. Be2 {[%clk 0:02:58.9]} 6... b6 {[%clk 0:02:44.4]}
7. O-O {[%clk 0:02:54.6]} 7... Bb7 {[%clk 0:02:44.4]} 8. Nc3 {[%clk 0:02:54]}
8... c6 {[%clk 0:02:42.1]} 9. Qc2 {[%clk 0:02:54]} 9... Nbd7 {[%clk 0:02:40.7]}
10. d4 {[%clk 0:02:53.8]} 10... Rc8 {[%clk 0:02:38.9]} 11. Rfe1 {[%clk
0:02:51.2]} 11... Re8 {[%clk 0:02:34.3]} 12. Rad1 {[%clk 0:02:47.9]} 12... e6
{[%clk 0:02:30.6]} 13. a4 {[%clk 0:02:36.1]} 13... a5 {[%clk 0:02:27.8]} 14. Qb1
{[%clk 0:02:32.4]} 14... Bf8 {[%clk 0:02:23.8]} 15. Bd3 {[%clk 0:02:24.5]} 15...
Bb4 {[%clk 0:02:22.2]} 16. Re2 {[%clk 0:02:24.3]} 16... Qe7 {[%clk 0:01:54.6]}
17. e4 {[%clk 0:01:59.1]} 17... dxc4 {[%clk 0:01:43.9]} 18. bxc4 {[%clk
0:01:55.8]} 18... e5 {[%clk 0:01:40]} 19. d5 {[%clk 0:01:53.2]} 19... Nc5 {[%clk
0:01:36.3]} 20. Bc2 {[%clk 0:01:45.8]} 20... Ba6 {[%clk 0:01:23.7]} 21. d6
{[%clk 0:01:38.3]} 21... Qd7 {[%clk 0:01:12.5]} 22. Qa2 {[%clk 0:00:58.4]} 22...
Qg4 {[%clk 0:00:58.4]} 23. h3 {[%clk 0:00:55.2]} 23... Qf4 {[%clk 0:00:58.4]}
24. Bc1 {[%clk 0:00:53.1]} 24... Bxc3 {[%clk 0:00:38.8]} 25. Bxf4 {[%clk
0:00:53.1]} 25... exf4 {[%clk 0:00:38.7]} 26. e5 {[%clk 0:00:52.9]} 26... Nfd7
{[%clk 0:00:36.5]} 27. h4 {[%clk 0:00:40.1]} 27... Bxe5 {[%clk 0:00:35]} 28.
Nxe5 {[%clk 0:00:39.9]} 28... Nxe5 {[%clk 0:00:34.9]} 29. Qa1 {[%clk 0:00:37.2]}
29... Ned7 {[%clk 0:00:32.2]} 30. Re7 {[%clk 0:00:35.4]} 30... Bxc4 {[%clk
0:00:30.1]} 31. h5 {[%clk 0:00:34.5]} 31... Be6 {[%clk 0:00:21.3]} 32. h6 {[%clk
0:00:34.2]} 32... f6 {[%clk 0:00:21.4]} 33. Rg7+ {[%clk 0:00:31.3]} 33... Kh8
{[%clk 0:00:21.8]} 34. Qb1 {[%clk 0:00:27.2]} 34... Ne5 {[%clk 0:00:19.1]} 35.
Re7 {[%clk 0:00:22.9]} 35... Ncd7 {[%clk 0:00:17.6]} 36. Bb3 {[%clk 0:00:21.1]}
36... Bf5 {[%clk 0:00:16.4]} 37. Qa2 {[%clk 0:00:18.2]} 37... Rxe7 {[%clk
0:00:12.2]} 38. dxe7 {[%clk 0:00:18.4]} 38... Re8 {[%clk 0:00:12.8]} 39. Be6
{[%clk 0:00:12.6]} 39... Rxe7 {[%clk 0:00:12]} 40. Bxf5 {[%clk 0:00:12.3]} 40...
gxf5 {[%clk 0:00:12.3]} 41. Qc2 {[%clk 0:00:12.4]} 41... Kg8 {[%clk 0:00:10.1]}
42. Qxf5 {[%clk 0:00:12.5]} 42... Kf7 {[%clk 0:00:11]} 43. f3 {[%clk 0:00:11]}
43... Ke8 {[%clk 0:00:10.4]} 44. Rd6 {[%clk 0:00:09.9]} 44... c5 {[%clk
0:00:08.4]} 45. Re6 {[%clk 0:00:09.8]} 45... c4 {[%clk 0:00:08.3]} 46. Rxe7+
{[%clk 0:00:08.7]} 46... Kxe7 {[%clk 0:00:09.2]} 47. Qxh7+ {[%clk 0:00:09.1]}
47... Ke6 {[%clk 0:00:08.7]} 48. Qg8+ {[%clk 0:00:09]} 48... Nf7 {[%clk
0:00:07.8]} 49. h7 {[%clk 0:00:09.1]} 49... Ke7 {[%clk 0:00:08.7]} 50. Qg7
{[%clk 0:00:08.8]} 50... Nf8 {[%clk 0:00:08.1]} 51. h8=Q {[%clk 0:00:08.3]}
51... Ne6 {[%clk 0:00:07.7]} 52. Qgh7 {[%clk 0:00:07.1]} 1-0

[Event "Late-Titled-Tuesday-Blitz-April-30-2024"]
[Site "Chess.com"]
[Date "2024.04.30"]
[Round "5"]
[White "sillypiggy2024"]
[Black "Caterpiller35"]
[Result "0-1"]
[WhiteElo "1735"]
[BlackElo "2487"]
[TimeControl "180+1"]
[EndTime "14:57:51 PDT"]
[Termination "Caterpiller35 won on time"]

1. d4 {[%clk 0:03:00.9]} 1... Nf6 {[%clk 0:02:59.4]} 2. c4 {[%clk 0:02:58.9]}
2... g6 {[%clk 0:02:59.5]} 3. g3 {[%clk 0:02:57]} 3... Bg7 {[%clk 0:02:59.6]} 4.
Bg2 {[%clk 0:02:56.7]} 4... O-O {[%clk 0:02:59.6]} 5. Nc3 {[%clk 0:02:55.7]}
5... d6 {[%clk 0:02:59.8]} 6. Nf3 {[%clk 0:02:55.9]} 6... Nc6 {[%clk 0:02:59.6]}
7. O-O {[%clk 0:02:55.8]} 7... e5 {[%clk 0:02:59.4]} 8. dxe5 {[%clk 0:02:55.4]}
8... dxe5 {[%clk 0:02:47.3]} 9. Qxd8 {[%clk 0:02:48.3]} 9... Rxd8 {[%clk
0:02:48.2]} 10. Bg5 {[%clk 0:02:48.3]} 10... h6 {[%clk 0:02:46.7]} 11. Bxf6
{[%clk 0:02:40.3]} 11... Bxf6 {[%clk 0:02:47.6]} 12. Nd5 {[%clk 0:02:40.6]}
12... Kg7 {[%clk 0:02:47.9]} 13. Nxc7 {[%clk 0:02:37.5]} 13... Rb8 {[%clk
0:02:47.9]} 14. Nd5 {[%clk 0:02:36.7]} 14... Be6 {[%clk 0:02:37.5]} 15. e4
{[%clk 0:02:33.7]} 15... Na5 {[%clk 0:02:01.9]} 16. b3 {[%clk 0:02:18.4]} 16...
Rbc8 {[%clk 0:01:53.6]} 17. Rad1 {[%clk 0:02:05.8]} 17... Nc6 {[%clk 0:01:48]}
18. Rfe1 {[%clk 0:02:00.6]} 18... Bg4 {[%clk 0:01:45]} 19. h3 {[%clk 0:01:53.5]}
19... Bxf3 {[%clk 0:01:36.5]} 20. Bxf3 {[%clk 0:01:54.4]} 20... Nd4 {[%clk
0:01:36.9]} 21. Bg4 {[%clk 0:01:52.7]} 21... Rc6 {[%clk 0:01:33.1]} 22. Rc1
{[%clk 0:01:50.5]} 22... h5 {[%clk 0:01:30.8]} 23. Be2 {[%clk 0:01:47.5]} 23...
Bg5 {[%clk 0:01:22.7]} 24. f4 {[%clk 0:01:41.8]} 24... exf4 {[%clk 0:01:17.8]}
25. gxf4 {[%clk 0:01:40]} 25... Bh4 {[%clk 0:01:18]} 26. Rcd1 {[%clk 0:01:31.7]}
26... Bxe1 {[%clk 0:01:13.7]} 27. Rxd4 {[%clk 0:01:30.8]} 27... Bg3 {[%clk
0:01:01.4]} 28. Rd3 {[%clk 0:01:24.5]} 28... h4 {[%clk 0:00:59.3]} 29. Kg2
{[%clk 0:01:22.5]} 29... Re8 {[%clk 0:00:57.4]} 30. Kf3 {[%clk 0:01:20.9]} 30...
g5 {[%clk 0:00:50.3]} 31. f5 {[%clk 0:01:05.6]} 31... f6 {[%clk 0:00:45]} 32. a3
{[%clk 0:00:59.6]} 32... Be5 {[%clk 0:00:44.3]} 33. Rd2 {[%clk 0:00:56.9]} 33...
Rd6 {[%clk 0:00:42.7]} 34. Rc2 {[%clk 0:00:55.6]} 34... Rc8 {[%clk 0:00:41.3]}
35. b4 {[%clk 0:00:52.7]} 35... b6 {[%clk 0:00:39.4]} 36. a4 {[%clk 0:00:41.8]}
36... Kf7 {[%clk 0:00:38.7]} 37. Bd3 {[%clk 0:00:37.3]} 37... a5 {[%clk
0:00:32.8]} 38. b5 {[%clk 0:00:32.5]} 38... Rc5 {[%clk 0:00:29.4]} 39. Be2
{[%clk 0:00:31.1]} 39... Ke8 {[%clk 0:00:24]} 40. Ke3 {[%clk 0:00:26.5]} 40...
Kd7 {[%clk 0:00:22.8]} 41. Bd3 {[%clk 0:00:24.4]} 41... Kc8 {[%clk 0:00:21]} 42.
Be2 {[%clk 0:00:21.7]} 42... Kb7 {[%clk 0:00:20.3]} 43. Bd3 {[%clk 0:00:20.7]}
43... Rd8 {[%clk 0:00:20.5]} 44. Be2 {[%clk 0:00:18.7]} 44... Rdc8 {[%clk
0:00:20.3]} 45. Bd3 {[%clk 0:00:16.3]} 45... Rf8 {[%clk 0:00:19.7]} 46. Be2
{[%clk 0:00:14.8]} 46... Bh2 {[%clk 0:00:19.3]} 47. Bg4 {[%clk 0:00:11.4]} 47...
Bg1+ {[%clk 0:00:19.1]} 48. Kd3 {[%clk 0:00:09.3]} 48... Rd8 {[%clk 0:00:18.7]}
49. Bf3 {[%clk 0:00:06.9]} 49... Rd6 {[%clk 0:00:15]} 50. Bh5 {[%clk 0:00:03.8]}
50... Rc8 {[%clk 0:00:12.4]} 51. Bg4 {[%clk 0:00:02.9]} 51... Bc5 {[%clk
0:00:12.4]} 52. Re2 {[%clk 0:00:00.6]} 52... Re8 {[%clk 0:00:12.1]} 0-1

[Event "Late-Titled-Tuesday-Blitz-April-30-2024"]
[Site "Chess.com"]
[Date "2024.04.30"]
[Round "5"]
[White "Walter_White_Poland"]
[Black "MiguelBestard1981"]
[Result "1-0"]
[WhiteElo "2369"]
[BlackElo "2138"]
[TimeControl "180+1"]
[EndTime "14:57:52 PDT"]
[Termination "Walter_White_Poland won by checkmate"]

1. e4 {[%clk 0:02:55]} 1... e5 {[%clk 0:02:59.2]} 2. Nf3 {[%clk 0:02:55]} 2...
Nf6 {[%clk 0:02:58.5]} 3. d4 {[%clk 0:02:54.1]} 3... Nxe4 {[%clk 0:02:57.6]} 4.
Bd3 {[%clk 0:02:53.6]} 4... Nc6 {[%clk 0:02:57.8]} 5. Bxe4 {[%clk 0:02:52.6]}
5... d5 {[%clk 0:02:57.2]} 6. Bg5 {[%clk 0:02:52.2]} 6... Qd7 {[%clk 0:02:42]}
7. Bd3 {[%clk 0:02:51.5]} 7... e4 {[%clk 0:02:35.3]} 8. O-O {[%clk 0:02:51.4]}
8... exd3 {[%clk 0:02:25.4]} 9. Re1+ {[%clk 0:02:50.1]} 9... Be7 {[%clk
0:02:25]} 10. Ne5 {[%clk 0:02:40.2]} 10... Nxe5 {[%clk 0:02:23.3]} 11. Bxe7
{[%clk 0:02:40.2]} 11... Qg4 {[%clk 0:01:32.2]} 12. Nc3 {[%clk 0:01:12.2]} 12...
Qxd1 {[%clk 0:01:22.4]} 13. Raxd1 {[%clk 0:01:03.2]} 13... dxc2 {[%clk
0:01:20.2]} 14. Rd2 {[%clk 0:00:56.2]} 14... c1=Q {[%clk 0:01:07.6]} 15. Rxc1
{[%clk 0:00:54.7]} 15... c6 {[%clk 0:00:59.6]} 16. Bb4 {[%clk 0:00:39.9]} 16...
Ng6 {[%clk 0:00:58.4]} 17. Re1+ {[%clk 0:00:38.6]} 17... Be6 {[%clk 0:00:56.9]}
18. g3 {[%clk 0:00:38]} 18... O-O-O {[%clk 0:00:55.4]} 19. f4 {[%clk 0:00:38.1]}
19... Rde8 {[%clk 0:00:54.4]} 20. Kf2 {[%clk 0:00:38]} 20... Bd7 {[%clk
0:00:54.3]} 21. Rde2 {[%clk 0:00:37.2]} 21... Rxe2+ {[%clk 0:00:53.8]} 22. Rxe2
{[%clk 0:00:38.1]} 22... Re8 {[%clk 0:00:53.1]} 23. Rxe8+ {[%clk 0:00:37.9]}
23... Bxe8 {[%clk 0:00:53.5]} 24. h4 {[%clk 0:00:38.6]} 24... Kd7 {[%clk
0:00:52.5]} 25. Nd1 {[%clk 0:00:37.7]} 25... Ne7 {[%clk 0:00:50.3]} 26. Bxe7
{[%clk 0:00:36.2]} 26... Kxe7 {[%clk 0:00:50.2]} 27. Ne3 {[%clk 0:00:36.5]}
27... Bd7 {[%clk 0:00:48.5]} 28. Ke2 {[%clk 0:00:36.1]} 28... h5 {[%clk
0:00:47.1]} 29. Kd3 {[%clk 0:00:35.9]} 29... Be6 {[%clk 0:00:42.4]} 30. b4
{[%clk 0:00:35.7]} 30... b6 {[%clk 0:00:42.1]} 31. Kc3 {[%clk 0:00:34.9]} 31...
Kd6 {[%clk 0:00:42.3]} 32. a3 {[%clk 0:00:24.5]} 32... g6 {[%clk 0:00:42.1]} 33.
Nd1 {[%clk 0:00:19.6]} 33... a6 {[%clk 0:00:42.3]} 34. Nf2 {[%clk 0:00:19.5]}
34... c5 {[%clk 0:00:42.4]} 35. dxc5+ {[%clk 0:00:16.8]} 35... bxc5 {[%clk
0:00:42.2]} 36. bxc5+ {[%clk 0:00:17.2]} 36... Kxc5 {[%clk 0:00:42.2]} 37. Nd3+
{[%clk 0:00:17.8]} 37... Kb5 {[%clk 0:00:40.4]} 38. Ne5 {[%clk 0:00:12.5]} 38...
Ka4 {[%clk 0:00:40.4]} 39. Kb2 {[%clk 0:00:12.6]} 39... d4 {[%clk 0:00:39.8]}
40. Nd3 {[%clk 0:00:11.4]} 40... f6 {[%clk 0:00:32.1]} 41. Nc5+ {[%clk 0:00:11]}
41... Kb5 {[%clk 0:00:32]} 42. Nxe6 {[%clk 0:00:11.1]} 42... Kc4 {[%clk
0:00:31]} 43. f5 {[%clk 0:00:09.6]} 43... gxf5 {[%clk 0:00:29]} 44. Ng7 {[%clk
0:00:10]} 44... f4 {[%clk 0:00:23.7]} 45. gxf4 {[%clk 0:00:09.2]} 45... Kd3
{[%clk 0:00:24]} 46. Nxh5 {[%clk 0:00:09]} 46... Ke2 {[%clk 0:00:24.2]} 47. Nxf6
{[%clk 0:00:09]} 47... d3 {[%clk 0:00:24.1]} 48. Ne4 {[%clk 0:00:09.1]} 48...
Ke3 {[%clk 0:00:24.2]} 49. Nc3 {[%clk 0:00:09]} 49... Kxf4 {[%clk 0:00:23.5]}
50. Kc1 {[%clk 0:00:09.6]} 50... Kg4 {[%clk 0:00:23.6]} 51. Kd2 {[%clk
0:00:10.5]} 51... Kxh4 {[%clk 0:00:23.9]} 52. Kxd3 {[%clk 0:00:11.4]} 52... Kg4
{[%clk 0:00:24.3]} 53. Kc4 {[%clk 0:00:12.2]} 53... Kf5 {[%clk 0:00:24.5]} 54.
Kc5 {[%clk 0:00:12.8]} 54... Ke6 {[%clk 0:00:25.3]} 55. a4 {[%clk 0:00:13.2]}
55... Kd7 {[%clk 0:00:24.3]} 56. a5 {[%clk 0:00:13.7]} 56... Kc7 {[%clk
0:00:24.3]} 57. Nd5+ {[%clk 0:00:13.9]} 57... Kb7 {[%clk 0:00:24.3]} 58. Kd6
{[%clk 0:00:13.5]} 58... Kb8 {[%clk 0:00:22]} 59. Kc6 {[%clk 0:00:14.4]} 59...
Ka7 {[%clk 0:00:22.3]} 60. Kc7 {[%clk 0:00:14.8]} 60... Ka8 {[%clk 0:00:22.3]}
61. Kb6 {[%clk 0:00:15.7]} 61... Kb8 {[%clk 0:00:22.8]} 62. Nb4 {[%clk
0:00:16.6]} 62... Ka8 {[%clk 0:00:23.4]} 63. Nd5 {[%clk 0:00:15.7]} 63... Kb8
{[%clk 0:00:22.9]} 64. Kxa6 {[%clk 0:00:16.2]} 64... Ka8 {[%clk 0:00:23.8]} 65.
Kb6 {[%clk 0:00:16.4]} 65... Kb8 {[%clk 0:00:24.3]} 66. a6 {[%clk 0:00:16.5]}
66... Ka8 {[%clk 0:00:24.8]} 67. Nc7+ {[%clk 0:00:16.4]} 67... Kb8 {[%clk
0:00:25.1]} 68. a7+ {[%clk 0:00:17.1]} 68... Kc8 {[%clk 0:00:25.6]} 69. a8=Q+
{[%clk 0:00:17.5]} 69... Kd7 {[%clk 0:00:26.5]} 70. Qe8+ {[%clk 0:00:17.2]}
70... Kd6 {[%clk 0:00:26.5]} 71. Qe6# {[%clk 0:00:17.8]} 1-0